bitfinex/quotes_BTCUSD_20250408
["timestamp","ask_amount","ask_price","bid_price","bid_amount"]
[1744139437321,0.272659,77019.0,77018.0,0.00961557]
[1744139437515,0.012983,77020.0,76996.0,0.272738]
[1744139437516,0.012985,77009.0,76996.0,0.272738]
[1744139437718,0.012985,77008.0,77003.0,0.259729]
[1744139437875,0.39029843,77010.0,77006.0,0.259719]
[1744139438073,0.39029843,77010.0,77001.0,0.012986]
[1744139438074,0.40846422,77020.0,77017.0,0.012984]
[1744139438322,0.40846422,77020.0,77007.0,0.12625864]
[1744139438323,0.259726,77005.0,76988.0,0.11545197]
[1744139438560,0.012985,77009.0,76988.0,0.11545197]
[1744139438561,0.012986,77004.0,77000.0,0.259738]
[1744139438740,0.012986,77004.0,77001.0,0.259736]
[1744139438741,0.259727,77004.0,77001.0,0.259736]
[1744139438940,0.259725,77005.0,77001.0,0.259736]
[1744139439151,0.272708,77006.0,77001.0,0.012986]
[1744139439152,0.012986,77006.0,77001.0,0.012986]
[1744139439324,0.39029843,77010.0,77006.0,0.012986]
[1744139439527,0.272696,77009.0,77006.0,0.259719]
[1744139439731,0.012983,77018.0,77011.0,0.259702]
[1744139439909,0.259696,77013.0,77009.0,0.259709]
[1744139440110,0.259691,77015.0,77001.0,0.003]
[1744139440111,0.259731,77003.0,77001.0,0.003]
[1744139440458,0.259731,77003.0,77001.0,0.002]
[1744139440797,0.25973,77004.0,77001.0,0.002]
[1744139441207,0.259697,77013.0,77007.0,0.012985]
[1744139441517,0.259703,77011.0,77007.0,0.272699]
[1744139441719,0.012984,77017.0,77008.0,0.012985]
[1744139441926,0.012983,77019.0,77014.0,0.012984]
[1744139442246,0.34,77027.0,77014.0,0.012984]
[1744139442247,0.003,77018.0,77017.0,0.272666]
[1744139442417,0.003,77018.0,77017.0,0.39892464]
[1744139442625,0.01298,77039.0,77033.0,0.259627]
[1744139442626,0.272591,77039.0,77033.0,0.259627]
[1744139442822,0.64987243,77050.0,77040.0,0.01298]
[1744139443018,0.64987243,77050.0,77042.0,0.012979]
[1744139443019,0.40327643,77050.0,77042.0,0.012979]
[1744139443378,0.012978,77051.0,77040.0,0.01298]
[1744139443379,0.272564,77046.0,77041.0,0.259598]
[1744139443600,0.272564,77046.0,77041.0,0.01298]
[1744139443803,0.00012593,77046.0,77045.0,0.259588]
[1744139443962,0.00012593,77046.0,77045.0,0.272567]
[1744139444170,0.00012593,77046.0,77045.0,0.39882564]
[1744139444365,0.00012593,77046.0,77045.0,0.41175802]
[1744139444569,9.3e-07,77046.0,77045.0,0.42629887]
[1744139444736,9.3e-07,77053.0,77052.0,0.352978]
[1744139444933,1e-06,77062.0,77061.0,0.28705085]
[1744139445174,1e-06,77062.0,77061.0,0.60480187]
[1744139445758,1e-06,77062.0,77061.0,0.94480187]
[1744139446018,1e-06,77062.0,77061.0,0.95477623]
[1744139446170,1e-06,77099.0,77073.0,0.612468]
[1744139446171,0.2597598,77094.0,77073.0,0.612468]
[1744139446504,0.00046091,77074.0,77073.0,0.41165902]
[1744139447094,0.00046091,77074.0,77073.0,0.42619987]
[1744139447362,9.1e-07,77074.0,77073.0,0.42619987]
[1744139447771,3.1e-07,77081.0,77080.0,0.612443]
[1744139447970,3.1e-07,77081.0,77080.0,0.93180249]
[1744139448358,3.1e-07,77081.0,77080.0,0.12625864]
[1744139448775,3.1e-07,77081.0,77080.0,0.13923164]
[1744139448974,3.1e-07,77081.0,77080.0,0.14623164]
[1744139449776,3.1e-07,77081.0,77080.0,0.15223164]
[1744139449973,3.1e-07,77081.0,77080.0,0.13925864]
[1744139450127,3.1e-07,77081.0,77080.0,0.15223164]
[1744139452260,3.1e-07,77081.0,77080.0,0.013]
[1744139452456,0.01297331,77081.0,77080.0,0.013]
[1744139452862,3.1e-07,77081.0,77080.0,0.013]
[1744139453064,3.1e-07,77081.0,77080.0,0.27247]
[1744139453317,3.1e-07,77081.0,77080.0,0.41170164]
[1744139453471,3.1e-07,77081.0,77080.0,0.39870164]
[1744139453987,3.1e-07,77081.0,77080.0,0.13225864]
[1744139454328,3.1e-07,77081.0,77080.0,0.14223164]
[1744139454760,3.1e-07,77081.0,77080.0,0.14982609]
[1744139454928,3.1e-07,77081.0,77080.0,0.13425864]
[1744139455129,3.1e-07,77081.0,77080.0,0.14223164]
[1744139455344,0.01000031,77081.0,77080.0,0.14223164]
[1744139455535,0.01000031,77081.0,77080.0,0.13225864]
[1744139455770,0.01000031,77081.0,77080.0,0.003]
[1744139456186,0.01000031,77081.0,77080.0,0.008]
[1744139456366,0.01000031,77081.0,77080.0,0.003]
[1744139456776,0.01000031,77081.0,77080.0,0.006]
[1744139457072,0.01000031,77081.0,77080.0,0.14523164]
[1744139457281,0.01000031,77081.0,77080.0,0.14782614]
[1744139457410,0.01000031,77081.0,77080.0,0.16075852]
[1744139457611,0.01000031,77081.0,77080.0,0.13225864]
[1744139458225,0.01000031,77081.0,77080.0,0.15977249]
[1744139458425,0.01000031,77081.0,77080.0,0.17529931]
[1744139458651,0.01000031,77081.0,77080.0,0.17270487]
[1744139459030,0.01000031,77081.0,77080.0,0.61045487]
[1744139459892,0.01000031,77081.0,77080.0,0.59591402]
[1744139460404,0.01000031,77081.0,77080.0,0.31053864]
[1744139460542,0.01000031,77081.0,77080.0,0.006]
[1744139460543,0.28244031,77081.0,77080.0,0.006]
[1744139460942,0.26946731,77081.0,77080.0,0.006]
[1744139461161,0.28244031,77081.0,77080.0,0.006]
[1744139461369,0.7291189,77081.0,77080.0,0.006]
[1744139461614,0.4566789,77081.0,77080.0,0.003]
[1744139461785,0.4566789,77081.0,77080.0,0.12925864]
[1744139461786,0.0218789,77081.0,77080.0,0.12925864]
[1744139462001,0.0218789,77081.0,77080.0,0.40170164]
[1744139462203,0.0218789,77081.0,77080.0,0.12925864]
[1744139462404,0.0218789,77081.0,77058.0,0.012977]
[1744139462405,0.259528,77063.0,77058.0,0.012977]
[1744139462615,0.259489,77075.0,77069.0,0.259507]
[1744139462811,0.259489,77075.0,77068.0,0.012975]
[1744139462812,0.01000031,77081.0,77073.0,0.259494]
[1744139463018,0.01000031,77081.0,77074.0,0.12625864]
[1744139463019,0.259487,77075.0,77074.0,0.12625864]
[1744139463220,0.012974,77073.0,77065.0,0.00012591]
[1744139463472,0.259517,77066.0,77065.0,0.00012591]
[1744139463619,0.259507,77069.0,77065.0,0.00012591]
[1744139463842,0.012974,77073.0,77065.0,0.00012591]
[1744139464039,0.259514,77067.0,77066.0,0.12625864]
[1744139464245,0.012975,77069.0,77065.0,0.00012591]
[1744139464422,0.012974,77073.0,77066.0,0.12625864]
[1744139464620,0.259514,77067.0,77066.0,0.12625864]
[1744139465234,0.259498,77072.0,77066.0,0.12625864]
[1744139465470,0.012973,77082.0,77067.0,0.01523365]
[1744139465471,0.259487,77075.0,77067.0,0.01523365]
[1744139465664,0.259507,77069.0,77068.0,0.12625864]
[1744139466423,0.259517,77066.0,77065.0,0.00012591]
[1744139466701,0.000335,77083.0,77079.0,0.259472]
[1744139466889,0.259465,77082.0,77080.0,0.12625864]
[1744139467091,0.26947031,77081.0,77080.0,0.12625864]
[1744139467651,0.01000031,77081.0,77080.0,0.40858162]
[1744139467922,0.000335,77083.0,77080.0,0.41014947]
[1744139468093,0.000335,77083.0,77082.0,0.41323549]
[1744139469073,0.000335,77083.0,77082.0,0.12625864]
[1744139469277,0.000335,77083.0,77082.0,0.39869464]
[1744139469634,0.000335,77083.0,77082.0,0.41823549]
[1744139470963,0.000335,77083.0,77082.0,0.76423549]
[1744139471166,0.000335,77083.0,77082.0,0.13725864]
[1744139471285,0.000335,77083.0,77082.0,0.40969464]
[1744139471491,0.000335,77083.0,77082.0,0.42423549]
[1744139471688,1e-06,77083.0,77082.0,0.94251549]
[1744139472138,1e-06,77083.0,77082.0,1.03751549]
[1744139472506,1e-06,77083.0,77082.0,0.98981549]
[1744139472870,1e-06,77083.0,77082.0,0.60251549]
[1744139473148,0.272434,77083.0,77082.0,0.011]
[1744139473365,0.2939967,77083.0,77082.0,0.011]
[1744139473869,0.2939967,77083.0,77082.0,0.005]
[1744139474326,0.2939967,77083.0,77082.0,0.009]
[1744139474477,0.31165654,77083.0,77082.0,0.009]
[1744139474679,0.31165654,77083.0,77082.0,0.005]
[1744139474999,1.06904783,77083.0,77082.0,1e-06]
[1744139475126,0.272492,77066.0,77065.0,0.00012591]
[1744139475303,0.259517,77066.0,77065.0,0.00012591]
[1744139475502,0.01197946,77066.0,77065.0,0.25964691]
[1744139475723,0.0215627,77066.0,77065.0,0.38590555]
[1744139475906,0.0215627,77066.0,77065.0,0.12638455]
[1744139476336,0.01197946,77066.0,77065.0,0.12638455]
[1744139476656,0.01197946,77066.0,77065.0,0.38690555]
[1744139476952,0.01197946,77066.0,77065.0,0.39988155]
[1744139477876,0.01197946,77066.0,77065.0,0.00112591]
[1744139478114,0.27149646,77066.0,77065.0,0.00112591]
[1744139478284,0.37928545,77066.0,77065.0,0.00012591]
[1744139478502,0.34165515,77066.0,77065.0,0.00012591]
[1744139478704,0.32967569,77066.0,77065.0,0.00012591]
[1744139479096,0.26910069,77066.0,77065.0,0.00012591]
[1744139479240,0.28207569,77066.0,77065.0,0.00012591]
[1744139479447,0.74833433,77066.0,77065.0,9.1e-07]
[1744139479662,0.74833433,77066.0,77049.0,0.0003348]
[1744139479663,0.612549,77050.0,77049.0,0.0003348]
[1744139479874,0.660149,77050.0,77049.0,0.0003348]
[1744139480283,0.79599133,77050.0,77049.0,0.0003348]
[1744139480533,0.66973269,77050.0,77049.0,0.0003348]
[1744139481124,0.79599133,77050.0,77049.0,0.0003348]
[1744139481359,0.67173269,77050.0,77049.0,0.0003348]
[1744139481711,0.68368047,77050.0,77049.0,0.0003348]
[1744139482641,1.08836676,77050.0,77049.0,0.0003348]
[1744139483062,0.67373269,77050.0,77049.0,0.0003348]
[1744139483229,0.35358369,77050.0,77049.0,0.0003348]
[1744139483638,0.36456169,77050.0,77049.0,0.0003348]
[1744139483953,0.49282033,77050.0,77049.0,8e-07]
[1744139484160,0.37056169,77050.0,77049.0,8e-07]
[1744139484318,0.36656169,77050.0,77049.0,8e-07]
[1744139484852,0.38048163,77050.0,77049.0,8e-07]
[1744139485852,0.37448163,77050.0,77049.0,8e-07]
[1744139486045,0.37548163,77050.0,77049.0,8e-07]
[1744139486290,0.37948163,77050.0,77049.0,8e-07]
[1744139486590,0.37848163,77050.0,77049.0,8e-07]
[1744139486735,0.38248163,77050.0,77049.0,8e-07]
[1744139486937,0.37848163,77050.0,77049.0,8e-07]
[1744139487592,0.38248163,77050.0,77049.0,8e-07]
[1744139488215,0.36950363,77050.0,77049.0,8e-07]
[1744139488577,0.01991994,77050.0,77049.0,0.2595758]
[1744139488740,0.008,77050.0,77049.0,8e-07]
[1744139489173,0.004,77050.0,77049.0,8e-07]
[1744139489396,0.007,77050.0,77049.0,0.0129788]
[1744139489629,0.003,77050.0,77049.0,0.2725538]
[1744139489861,0.003,77050.0,77049.0,8e-07]
[1744139489978,0.619549,77050.0,77049.0,8e-07]
[1744139490384,0.617549,77050.0,77049.0,8e-07]
[1744139490590,1.09539261,77050.0,77049.0,8e-07]
[1744139490794,1.09539261,77050.0,77030.0,0.0003348]
[1744139490795,0.612598,77036.0,77030.0,0.0003348]
[1744139491027,0.34,77036.0,77034.0,0.259623]
[1744139491252,0.599618,77036.0,77032.0,0.25963]
[1744139491454,0.612598,77036.0,77030.0,0.0003348]
[1744139491959,0.272598,77036.0,77030.0,0.2599718]
[1744139492180,0.259618,77036.0,77030.0,0.0003348]
[1744139492432,0.259615,77037.0,77032.0,0.25963]
[1744139492651,0.263618,77036.0,77030.0,0.0003348]
[1744139492823,0.272598,77036.0,77030.0,0.2599728]
[1744139493227,0.274598,77036.0,77030.0,0.0003348]
[1744139493430,0.272598,77036.0,77030.0,0.0003348]
[1744139493795,0.273598,77036.0,77030.0,0.0003348]
[1744139494025,0.001,77036.0,77034.0,0.012981]
[1744139494224,0.001,77036.0,77031.0,0.012981]
[1744139494225,0.260618,77036.0,77031.0,0.259635]
[1744139494434,0.272598,77036.0,77030.0,0.0003348]
[1744139494682,0.617598,77036.0,77030.0,0.0003348]
[1744139495274,0.619598,77036.0,77030.0,0.0003348]
[1744139495669,0.617598,77036.0,77030.0,0.0003348]
[1744139495866,0.621598,77036.0,77035.0,0.0013348]
[1744139496107,0.603618,77036.0,77035.0,0.0013348]
[1744139496282,0.276598,77036.0,77035.0,0.0013348]
[1744139496815,0.01698,77036.0,77035.0,0.0013348]
[1744139497027,0.276598,77036.0,77035.0,0.0013348]
[1744139497320,0.617598,77036.0,77035.0,0.0003348]
[1744139497728,0.612598,77036.0,77035.0,0.0003348]
[1744139498513,0.616598,77036.0,77035.0,0.0003348]
[1744139498973,0.620598,77036.0,77035.0,0.0013348]
[1744139499175,0.267618,77036.0,77035.0,0.0013348]
[1744139499473,0.280598,77036.0,77035.0,0.0013348]
[1744139499788,0.001,77036.0,77035.0,0.39919644]
[1744139500204,0.003,77036.0,77035.0,0.41373729]
[1744139500436,0.003,77036.0,77035.0,0.42666967]
[1744139500639,0.008,77036.0,77035.0,0.42666967]
[1744139501072,0.003,77036.0,77035.0,0.42666967]
[1744139501277,0.003,77036.0,77035.0,0.41212882]
[1744139501479,0.260618,77036.0,77035.0,0.13259344]
[1744139501847,0.8116035,77036.0,77035.0,8e-07]
[1744139502062,0.8116035,77036.0,77021.0,0.0004]
[1744139502063,0.612649,77022.0,77021.0,0.0004]
[1744139502268,0.612649,77022.0,77021.0,1e-06]
[1744139502269,0.78400764,77022.0,77021.0,1e-06]
[1744139502440,0.79355215,77022.0,77021.0,1e-06]
[1744139502639,0.9198076,77022.0,77021.0,1e-06]
[1744139502980,0.66729351,77022.0,77021.0,1e-06]
[1744139503182,0.62219351,77022.0,77021.0,1e-06]
[1744139503628,0.6222914,77022.0,77021.0,1e-06]
[1744139504029,0.6302914,77022.0,77021.0,0.001001]
[1744139504452,0.6222914,77022.0,77021.0,1e-06]
[1744139504594,0.6222914,77022.0,77021.0,0.001001]
[1744139504791,0.6362914,77022.0,77021.0,0.002001]
[1744139504996,0.6362914,77022.0,77021.0,0.001001]
[1744139505246,0.6362914,77022.0,77021.0,0.002001]
[1744139505450,0.6562344,77022.0,77021.0,0.002001]
[1744139505680,0.3162344,77022.0,77021.0,0.002001]
[1744139506090,0.0435854,77022.0,77021.0,0.002001]
[1744139506218,0.0316424,77022.0,77021.0,0.14124264]
[1744139506437,0.02209789,77022.0,77021.0,0.14124264]
[1744139507044,0.01509789,77022.0,77021.0,0.39991164]
[1744139507446,0.02109789,77022.0,77021.0,0.40091164]
[1744139507847,0.00609789,77022.0,77021.0,0.39891164]
[1744139508024,0.00609789,77022.0,77021.0,0.39991164]
[1744139508234,0.27874689,77022.0,77021.0,0.12725964]
[1744139508637,0.28274689,77022.0,77021.0,0.001001]
[1744139509016,0.2823239,77022.0,77021.0,1e-06]
[1744139509288,0.2873239,77022.0,77021.0,1e-06]
[1744139509593,0.2373239,77022.0,77021.0,1e-06]
[1744139509789,0.2403239,77022.0,77021.0,1e-06]
[1744139510089,0.25229532,77022.0,77021.0,1e-06]
[1744139510809,0.60527832,77022.0,77021.0,1e-06]
[1744139511302,0.02654843,77022.0,77021.0,1e-06]
[1744139511618,0.28621443,77022.0,77021.0,1e-06]
[1744139511816,0.29919743,77022.0,77021.0,1e-06]
[1744139512030,0.30319743,77022.0,77021.0,1e-06]
[1744139513134,0.03054843,77022.0,77021.0,1e-06]
[1744139513329,0.03054843,77022.0,77021.0,0.39891164]
[1744139513654,0.02097142,77022.0,77021.0,0.39891164]
[1744139514879,0.03395442,77022.0,77021.0,0.12625964]
[1744139515069,0.29362042,77022.0,77021.0,1e-06]
[1744139515507,0.30319057,77022.0,77021.0,1e-06]
[1744139516873,0.03054157,77022.0,77021.0,1e-06]
[1744139517067,0.02097142,77022.0,77021.0,1e-06]
[1744139517271,0.02097142,77022.0,77021.0,0.39891164]
[1744139517528,0.02097142,77022.0,77021.0,0.13924264]
[1744139517658,0.02097142,77022.0,77021.0,0.39891164]
[1744139518959,0.01597142,77022.0,77021.0,0.39891164]
[1744139519260,0.01297142,77022.0,77021.0,0.39891164]
[1744139519606,0.002,77022.0,77021.0,0.39891164]
[1744139519913,0.002,77022.0,77021.0,0.38592864]
[1744139520208,0.002,77022.0,77021.0,0.39891164]
[1744139520412,0.01397142,77022.0,77021.0,0.12625964]
[1744139520613,0.28662042,77022.0,77021.0,1e-06]
[1744139520827,0.01397142,77022.0,77021.0,1e-06]
[1744139521000,0.02355137,77022.0,77021.0,0.39891164]
[1744139521170,0.02355137,77022.0,77021.0,0.12625964]
[1744139521367,0.28662042,77022.0,77021.0,0.12625964]
[1744139521568,0.274649,77022.0,77021.0,1e-06]
[1744139521769,0.002,77022.0,77021.0,1e-06]
[1744139522002,0.002,77022.0,77021.0,0.13924264]
[1744139522180,0.002,77022.0,77021.0,0.39891164]
[1744139523052,0.002,77022.0,77021.0,1e-06]
[1744139523254,0.274649,77022.0,77021.0,1e-06]
[1744139523655,0.28422861,77022.0,77021.0,1e-06]
[1744139524088,0.30818073,77022.0,77021.0,1e-06]
[1744139524289,0.03553173,77022.0,77021.0,1e-06]
[1744139524409,0.30818073,77022.0,77021.0,1e-06]
[1744139525068,0.03553173,77022.0,77021.0,0.39891164]
[1744139525690,0.03553173,77022.0,77021.0,0.12125964]
[1744139525833,0.012983,77019.0,77018.0,0.000335]
[1744139526016,0.259676,77019.0,77018.0,0.12659364]
[1744139526220,0.29661112,77019.0,77018.0,0.000335]
[1744139526417,0.64619073,77019.0,77018.0,0.000335]
[1744139526616,0.6581625,77019.0,77018.0,0.000335]
[1744139527123,0.3855035,77019.0,77018.0,0.000335]
[1744139527271,0.6451795,77019.0,77018.0,0.000335]
[1744139527475,0.3181625,77019.0,77018.0,0.000335]
[1744139527695,0.0455035,77019.0,77018.0,0.000335]
[1744139527894,0.3051795,77019.0,77018.0,0.000335]
[1744139528094,0.3181625,77019.0,77018.0,0.000335]
[1744139528512,0.74710525,77019.0,77018.0,0.000335]
[1744139529347,0.6591625,77019.0,77018.0,0.000335]
[1744139529628,0.63421038,77019.0,77018.0,0.000335]
[1744139529821,0.64021038,77019.0,77018.0,0.001335]
[1744139530077,0.612666,77017.0,77016.0,1e-06]
[1744139530300,0.83929835,77017.0,77016.0,1e-06]
[1744139530731,0.74850425,77017.0,77016.0,1e-06]
[1744139530885,0.63421738,77017.0,77016.0,1e-06]
[1744139531815,0.76047602,77017.0,77004.0,1e-06]
[1744139532169,0.76047602,77017.0,76991.0,0.0004]
[1744139532170,0.612755,76992.0,76991.0,0.0004]
[1744139532373,0.661855,76992.0,76991.0,0.0004]
[1744139532576,0.91436909,76992.0,76991.0,0.0004]
[1744139532804,0.9239487,76992.0,76991.0,0.0004]
[1744139533271,0.67143461,76992.0,76991.0,0.0004]
[1744139533492,0.68337805,76992.0,76991.0,0.0004]
[1744139533724,0.71226575,76992.0,76991.0,0.00082009]
[1744139533922,0.70726575,76992.0,76991.0,0.00082009]
[1744139534203,0.72398327,76992.0,76991.0,0.00082009]
[1744139534430,0.73298327,76992.0,76991.0,0.00182009]
[1744139534685,0.85023872,76992.0,76991.0,0.00082009]
[1744139535103,0.72398327,76992.0,76991.0,0.00082009]
[1744139535363,0.72798327,76992.0,76991.0,0.00082009]
[1744139535818,0.67888327,76992.0,76991.0,0.00082009]
[1744139536025,0.68288327,76992.0,76991.0,0.00182009]
[1744139536221,0.68988327,76992.0,76991.0,0.00182009]
[1744139537892,0.64250586,76992.0,76991.0,0.00182009]
[1744139538675,0.7687645,76992.0,76991.0,0.00182009]
[1744139538870,0.7687645,76992.0,76991.0,9e-08]
[1744139540211,0.64250586,76992.0,76991.0,9e-08]
[1744139541330,0.7687645,76992.0,76991.0,9e-08]
[1744139541673,0.89501995,76992.0,76991.0,9e-08]
[1744139542540,0.612758,76991.0,76990.0,9e-08]
[1744139542771,0.612825,76972.0,76971.0,0.0003344]
[1744139542989,0.612825,76972.0,76971.0,0.00046033]
[1744139543208,0.62240461,76972.0,76971.0,0.00046033]
[1744139543403,0.64629231,76972.0,76971.0,0.00046033]
[1744139543605,0.65823575,76972.0,76971.0,0.00046033]
[1744139544003,0.66023575,76972.0,76971.0,0.00046033]
[1744139544793,0.78649439,76972.0,76971.0,0.00046033]
[1744139545685,0.66223575,76972.0,76971.0,0.00046033]
[1744139545841,0.66023575,76972.0,76971.0,0.00046033]
[1744139546306,0.66723575,76972.0,76971.0,0.00046033]
[1744139546431,0.67623575,76972.0,76971.0,0.00046033]
[1744139546628,0.68223575,76972.0,76971.0,0.00046033]
[1744139546854,0.34223575,76972.0,76971.0,0.00046033]
[1744139547185,0.06740175,76972.0,76971.0,0.00046033]
[1744139547548,0.06482214,76972.0,76971.0,0.00046033]
[1744139547947,0.05183114,76972.0,76971.0,0.00046033]
[1744139548148,0.05183114,76972.0,76971.0,0.13970997]
[1744139548328,0.0308877,76972.0,76971.0,0.13970997]
[1744139548533,0.0378877,76972.0,76971.0,0.13970997]
[1744139548830,0.0308877,76972.0,76971.0,0.13970997]
[1744139549032,0.005,76972.0,76971.0,0.13970997]
[1744139549287,0.272803,76979.0,76972.0,0.272825]
[1744139549496,0.259817,76978.0,76974.0,0.259827]
[1744139549698,0.259817,76978.0,76975.0,0.12625864]
[1744139549899,0.29659654,76979.0,76975.0,0.12625864]
[1744139549900,0.02379354,76979.0,76978.0,0.259814]
[1744139550074,0.2598,76983.0,76978.0,0.39906264]
[1744139550256,0.2598,76983.0,76979.0,0.12625864]
[1744139550455,0.272797,76981.0,76979.0,0.12625864]
[1744139550701,0.272818,76975.0,76971.0,0.17850033]
[1744139550904,0.259832,76973.0,76971.0,0.30475897]
[1744139551105,0.272818,76974.0,76971.0,0.30475897]
[1744139551261,0.012991,76972.0,76971.0,0.30475897]
[1744139551781,0.259832,76973.0,76971.0,0.00046033]
[1744139552101,0.03679444,76972.0,76971.0,0.00046033]
[1744139552310,0.04869592,76972.0,76971.0,0.00046033]
[1744139553436,0.05922248,76972.0,76971.0,0.00046033]
[1744139553771,0.39922248,76972.0,76971.0,0.00046033]
[1744139554940,0.04623148,76972.0,76971.0,0.38655697]
[1744139555296,0.04623148,76972.0,76971.0,0.12671897]
[1744139555297,0.03670492,76972.0,76971.0,0.12671897]
[1744139555518,0.03670492,76972.0,76971.0,0.14907953]
[1744139555729,0.03670492,76972.0,76971.0,0.12671897]
[1744139556161,0.04625303,76972.0,76971.0,0.12671897]
[1744139556287,0.05924403,76972.0,76971.0,0.12671897]
[1744139556502,0.04625303,76972.0,76971.0,0.12671897]
[1744139556995,0.04625303,76972.0,76971.0,0.39954797]
[1744139557509,0.03670492,76972.0,76971.0,0.39954797]
[1744139559296,0.29653892,76972.0,76971.0,0.12671897]
[1744139559498,0.03670492,76972.0,76971.0,0.12671897]
[1744139559699,0.03670492,76972.0,76971.0,0.13970997]
[1744139559899,0.03670492,76972.0,76971.0,0.39954797]
[1744139561782,0.03670492,76972.0,76971.0,0.41408882]
[1744139561981,0.01290148,76972.0,76971.0,0.41408882]
[1744139562308,0.01290148,76972.0,76971.0,0.46288882]
[1744139562508,0.01290148,76972.0,76971.0,0.64092882]
[1744139562686,0.001,76972.0,76971.0,0.64092882]
[1744139562898,0.001,76972.0,76971.0,0.98092882]
[1744139563132,0.002,76972.0,76971.0,0.98092882]
[1744139563504,0.002,76972.0,76971.0,0.39954797]
[1744139563505,0.01290148,76972.0,76971.0,0.39954797]
[1744139563882,0.01390148,76972.0,76971.0,0.57858797]
[1744139564504,0.01390148,76972.0,76971.0,0.12771897]
[1744139564711,0.01290148,76972.0,76971.0,0.12771897]
[1744139564919,0.01190148,76972.0,76971.0,0.39954797]
[1744139565114,0.03685268,76972.0,76971.0,0.40054797]
[1744139565317,0.03585268,76972.0,76971.0,0.40054797]
[1744139565687,0.03585268,76972.0,76971.0,0.30575897]
[1744139565858,0.30867768,76972.0,76971.0,0.30575897]
[1744139566003,0.28472648,76972.0,76971.0,0.00146033]
[1744139566205,0.64112069,76972.0,76971.0,0.00146033]
[1744139566614,0.03584956,76972.0,76971.0,0.00146033]
[1744139566813,0.03584956,76972.0,76971.0,0.13970997]
[1744139567146,0.352991,76972.0,76971.0,0.00046033]
[1744139567348,0.613825,76972.0,76971.0,0.00046033]
[1744139567745,0.612825,76972.0,76971.0,0.00046033]
[1744139568112,0.612825,76972.0,76971.0,0.00146033]
[1744139568339,0.7794001,76972.0,76971.0,0.00146033]
[1744139568566,0.4394001,76972.0,76971.0,0.00146033]
[1744139569004,0.318725,76972.0,76971.0,0.00146033]
[1744139569569,0.318725,76972.0,76971.0,0.00046033]
[1744139569943,0.272825,76972.0,76971.0,0.00046033]
[1744139570177,0.273825,76972.0,76971.0,0.00046033]
[1744139570643,0.272825,76972.0,76971.0,0.00046033]
[1744139570863,0.281825,76972.0,76971.0,0.00046033]
[1744139571318,0.272825,76972.0,76971.0,0.00046033]
[1744139571549,0.276825,76972.0,76971.0,0.00046033]
[1744139571746,0.278825,76972.0,76971.0,0.00046033]
[1744139571864,0.36286558,76972.0,76971.0,0.00046033]
[1744139572071,0.283825,76972.0,76971.0,0.00046033]
[1744139572707,0.012991,76972.0,76971.0,0.00046033]
[1744139572911,0.272825,76972.0,76971.0,0.00046033]
[1744139573167,0.283825,76972.0,76971.0,0.00046033]
[1744139573455,0.41008364,76972.0,76971.0,0.00046033]
[1744139573675,0.27284,76968.0,76967.0,1e-07]
[1744139573917,0.34,76967.0,76961.0,9.9e-07]
[1744139574124,0.272876,76958.0,76957.0,9.9e-07]
[1744139574354,0.272876,76958.0,76957.0,0.00012697]
[1744139575541,0.259879,76959.0,76957.0,0.00012697]
[1744139575839,0.012992,76968.0,76957.0,0.01312097]
[1744139576030,0.259847,76969.0,76963.0,0.259863]
[1744139576239,0.259858,76965.0,76960.0,0.012993]
[1744139576378,0.272876,76958.0,76957.0,0.00012697]
[1744139576577,0.012993,76961.0,76957.0,0.00012697]
[1744139576782,0.259864,76964.0,76958.0,0.12625864]
[1744139577001,0.272857,76964.0,76958.0,0.13925264]
[1744139577279,0.259869,76962.0,76958.0,0.12625864]
[1744139577475,0.012993,76960.0,76957.0,0.00012697]
[1744139577682,0.015994,76958.0,76957.0,0.00012697]
[1744139578085,0.272876,76958.0,76957.0,0.00012697]
[1744139579093,0.30874962,76958.0,76957.0,0.00012697]
[1744139579315,0.31174962,76958.0,76957.0,0.00012697]
[1744139579932,0.29979174,76958.0,76957.0,0.00012697]
[1744139580130,0.30379174,76958.0,76957.0,0.00012697]
[1744139580511,0.30079174,76958.0,76957.0,0.00012697]
[1744139580712,0.30579174,76958.0,76957.0,0.00012697]
[1744139581551,0.918833,76958.0,76957.0,9.7e-07]
[1744139581703,0.272935,76941.0,76940.0,6e-07]
[1744139581910,0.272935,76941.0,76925.0,3e-07]
[1744139581911,0.012999,76926.0,76925.0,3e-07]
[1744139582185,0.273074,76902.0,76901.0,0.0004]
[1744139582417,0.28499794,76902.0,76901.0,0.0004]
[1744139582724,0.32472588,76902.0,76901.0,0.00081615]
[1744139583340,0.66472588,76902.0,76901.0,0.00081615]
[1744139583551,0.260135,76883.0,76882.0,0.11645193]
[1744139583751,0.273141,76883.0,76882.0,0.11645193]
[1744139583971,0.29705674,76883.0,76882.0,0.11645193]
[1744139584167,0.29597468,76883.0,76882.0,0.11645193]
[1744139584416,0.28506494,76883.0,76882.0,0.11645193]
[1744139585554,0.273141,76883.0,76882.0,0.11645193]
[1744139586751,0.613141,76883.0,76882.0,0.11645193]
[1744139587568,0.613149,76881.0,76880.0,0.0001675]
[1744139587764,0.86566309,76881.0,76880.0,0.0001675]
[1744139588649,0.27318,76872.0,76870.0,0.0001677]
[1744139589943,0.2755988,76872.0,76870.0,0.0001677]
[1744139591036,0.40185744,76872.0,76870.0,0.0001677]
[1744139591180,0.40485744,76872.0,76870.0,0.0001677]
[1744139591586,0.273234,76857.0,76856.0,8e-05]
[1744139592385,0.28943193,76857.0,76856.0,8e-05]
[1744139592848,0.29243193,76857.0,76856.0,8e-05]
[1744139593219,0.29443193,76857.0,76856.0,8e-05]
[1744139593402,0.29243193,76857.0,76856.0,8e-05]
[1744139593605,0.63243193,76857.0,76856.0,8e-05]
[1744139594175,0.35619793,76857.0,76856.0,8e-05]
[1744139594649,0.36019793,76857.0,76856.0,8e-05]
[1744139594882,0.36419793,76857.0,76856.0,8e-05]
[1744139595021,0.35619793,76857.0,76856.0,8e-05]
[1744139595439,0.36119793,76857.0,76856.0,8e-05]
[1744139595647,0.37220893,76857.0,76856.0,8e-05]
[1744139595886,0.36920893,76857.0,76856.0,8e-05]
[1744139596093,0.03120893,76857.0,76856.0,8e-05]
[1744139596236,0.02920893,76857.0,76856.0,8e-05]
[1744139596582,0.01919793,76857.0,76856.0,8e-05]
[1744139596928,0.003,76857.0,76856.0,0.38656464]
[1744139597120,0.003,76857.0,76856.0,0.39957564]